Cogmind - Beta 13 @@@ ROGUE MODE // 2024.04.06 @ 21:31:07 Player: gabr Result: Destroyed by H-61 Shepherd with Heavy Assault Cannon Performance ------------- Evolutions (2) 1000 Regions Visited (4) 800 Robots Destroyed (42) 210 Value Destroyed (1056) 1056 Prototype IDs (1) 20 Alien Tech Used (0) 0 Bonus (74) 74 TOTAL SCORE: 3160 Bonus ------- Follower Combat Kills 74 Cogmind --------- Core Integrity 0/550 Matter 237/300 Energy 32/100 System Corruption 0% Temperature Cool (0) Movement Rolling (145) Ox3 Location -8/Materials Parts ------- > --- POWER (1) -------- (None) > --- PROPULSION (6) --- Armored Huge Wheel Armored Huge Wheel > --- UTILITY (2) ------ Huge Storage Unit > --- WEAPON (2) ------- Heavy Assault Rifle Shock Bomb Launcher > --- INVENTORY (25) --- Light Treads Faulty Improved VTOL Module Improved VTOL Module Improved VTOL Module Advanced Heat Sink Improved Sensor Array Improved Signal Interpreter Improved Terrain Scanner Improved Terrain Scanner Particle Charger Hardened Medium Armor Plating Recalibrator Field Recycling Unit (0) Spread Laser Spread Laser Peak State ------------ > --- POWER ------------ (None) > --- PROPULSION ------- Armored Huge Wheel Armored Huge Wheel Armored Huge Wheel > --- UTILITY ---------- Huge Storage Unit > --- WEAPON ----------- Particle Gun Heavy Laser > --- INVENTORY -------- Ion Engine Light Nuclear Core Light Treads Wheel Wheel Improved VTOL Module Improved VTOL Module Improved VTOL Module Advanced Heat Sink Improved Sensor Array Improved Signal Interpreter Improved Terrain Scanner Improved Terrain Scanner Particle Charger Hardened Medium Armor Plating Recalibrator Field Recycling Unit Spread Laser Spread Laser Shock Bomb Launcher [Rating: 36] Favorites ----------- Power Ion Engine Engine Ion Engine Power Core Nuclear Core Propulsion Wheel Treads Light Treads Leg Aluminum Leg Wheel Wheel Utility High-capacity Matter Pod Storage High-capacity Matter Pod Processor Visual Processing Unit Weapon Beam Rifle Energy Gun Beam Rifle Energy Cannon Particle Cannon Ballistic Gun Enhanced Autogun Launcher Shock Bomb Launcher Build | -11 -10 -9 -9 -8 ------- Run | Yrd Mat Mat Min Mat Slots Evolved 4 | . . 2 . 2 Power . | . . . . . Propulsion 4 | . . 2 . 2 Utility . | . . . . . Weapon . | . . . . . Parts Attached 71 | 7 12 10 4 38 Power 8 | 2 . . . 6 Engine 5 | 2 . . . 3 Core 3 | . . . . 3 Reactor . | . . . . . Propulsion 40 | 2 6 9 1 22 Treads 2 | . . 1 . 1 Leg 7 | 2 4 1 . . Wheel 31 | . 2 7 1 21 Hover . | . . . . . Flight . | . . . . . Utility 4 | 1 3 . . . Device . | . . . . . Storage 3 | 1 2 . . . Processor 1 | . 1 . . . Hackware . | . . . . . Protection . | . . . . . Artifact . | . . . . . Weapon 19 | 2 3 1 3 10 Energy Gun 11 | 1 3 1 2 4 Energy Cannon 2 | . . . 1 1 Ballistic Gun 4 | 1 . . . 3 Ballistic Cannon . | . . . . . Launcher 2 | . . . . 2 Special Weapon . | . . . . . Impact Weapon . | . . . . . Slashing Weapon . | . . . . . Piercing Weapon . | . . . . . Special Melee Weapon . | . . . . . Unidentified Prototypes 1 | . . . . 1 Parts Lost 25 | . 2 . . 23 Power 4 | . . . . 4 Propulsion 14 | . 1 . . 13 Utility 1 | . . . . 1 Weapon 6 | . 1 . . 5 Highest Loss Streak 14 | . 2 . . 14 To Critical Strikes . | . . . . . Average Slot Usage (%) 95 | . 93 88 100 85 Engine 11 | . 14 11 11 7 Leg 5 | . 21 . . . Wheel 32 | . 3 31 44 43 Storage 22 | . 26 22 22 15 Energy Gun 15 | . 25 22 12 5 Energy Cannon 5 | . . . 9 2 Ballistic Gun 1 | . . . . 8 Naked Turns . | . . . . . Heaviest Build 98 | 14 95 94 96 98 Greatest Support 84 | 20 20 46 40 84 Greatest Overweight (x) 9 | 1 9 5 2 8 Average Overweight (x) 1 | . 2 2 2 1 Largest Inventory Capacity 25 | 8 25 25 25 25 Average Capacity 23 | 6 19 25 25 25 Most Carried 25 | 3 10 17 23 25 Average Carried 17 | 1 8 11 21 22 Final Capacity 25 | 8 25 25 25 25 Final Carried 23 | 3 9 17 23 15 Class Distribution -------------------- 64% | Scavenger-Mutant 35% | Mutant Dominant Class ---------------- Mutant | -10/Materials Mutant | -9/Materials Scavenger-Mutant | -9/Mines Scavenger-Mutant | -8/Materials Resources | -11 -10 -9 -9 -8 ----------- Run | Yrd Mat Mat Min Mat Matter Collected 1232 | 49 294 225 212 452 Remotely . | . . . . . Salvage Created 1415 | . 260 212 206 737 Parts 102 | . 22 19 17 44 Haulers Intercepted 1 | . . . . 1 Recyclers Shooed 8 | . 4 1 3 . Parts Field Recycled . | . . . . . Retrieved Matter . | . . . . . Parts Self-Destructed . | . . . . . Prevented . | . . . . . Kills | -11 -10 -9 -9 -8 ------- Run | Yrd Mat Mat Min Mat Combat Hostiles Destroyed 23 | . 5 2 4 12 Guns 22 | . 5 2 4 11 Cannons 1 | . . . . 1 Classes Destroyed 14 | . 6 3 1 4 Worker 5 | . 2 1 1 1 Builder 1 | . . 1 . . Tunneler 3 | . . 1 2 . Hauler 1 | . . . . 1 Recycler 5 | . 2 1 1 1 Mechanic 2 | . 1 1 . . Operator 1 | . 1 . . . Watcher 1 | . . . . 1 Swarmer 5 | . 2 . 3 . Grunt 10 | . 3 1 . 6 Duelist 1 | . . . 1 . Sentry 4 | . . 1 . 3 Specialist 2 | . . . . 2 Heavy 1 | . . . . 1 Best Kill Streak 4 | . 3 3 4 4 Combat Bots Only 3 | . 2 1 3 3 Max Kills in Single Turn 1 | . 1 1 1 1 Gunslinging . | . . . . . Exploded . | . . . . . Melee . | . . . . . Uniques/NPCs Destroyed . | . . . . . Combat | -11 -10 -9 -9 -8 -------- Run | Yrd Mat Mat Min Mat Hostile Shots Fired 284 | . 27 9 25 223 Missed 87 | . 8 1 9 69 Damage Taken 3545 | . 383 109 138 2915 Core 746 | . 82 42 24 598 Absorbed by Shields . | . . . . . Core Remaining (%) 83 | 100 67 . 83 . Volleys Fired 148 | . 45 11 27 65 Largest 2 | . 2 2 2 2 Hottest 134 | . 130 115 124 134 Shots Fired 262 | . 70 22 54 116 Gun 250 | . 70 22 51 107 Cannon 10 | . . . 3 7 Launcher 2 | . . . . 2 Special . | . . . . . Kinetic 67 | . . . . 67 Thermal 193 | . 70 22 54 47 Explosive 2 | . . . . 2 Electromagnetic . | . . . . . Robot Hit Streak 12 | . 7 7 12 10 Robot Miss Streak 14 | . 14 1 6 5 Penetration Max . | . . . . . Secondary Targets 6 | . 2 . 1 3 Max Gunslinging Chain 1 | . 1 . 1 1 Shots Hit Robots 169 | . 39 17 27 86 Core Hits 119 | . 49 12 9 49 Critical Kills 1 | . . . . 1 Critical Parts Destroyed 1 | . . . . 1 Critical Strikes 3 | . . . 1 2 Burn 1 | . . . 1 . Destroy 2 | . . . . 2 Melee Attacks . | . . . . . Impact . | . . . . . Slashing . | . . . . . Piercing . | . . . . . Sneak Attacks . | . . . . . Combat Hostiles . | . . . . . Follow-up Attacks . | . . . . . Damage Inflicted 2610 | . 481 236 444 1449 Guns 2400 | . 481 236 383 1300 Cannons 164 | . . . 61 103 Explosions 33 | . . . . 33 Melee . | . . . . . Ramming 13 | . . . . 13 Kinetic 737 | . . . . 737 Thermal 1827 | . 481 236 444 666 Explosive 33 | . . . . 33 Electromagnetic . | . . . . . Impact . | . . . . . Slashing . | . . . . . Piercing . | . . . . . Highest Corruption . | . . . . . Average Corruption . | . . . . . Corruption Purged . | . . . . . Corruption Blocked . | . . . . . Overload Shots . | . . . . . Overflow Damage 59 | . 45 . . 14 Projectiles . | . . . . . Explosions 59 | . 45 . . 14 Melee . | . . . . . Knockbacks . | . . . . . Impact . | . . . . . Kinetic . | . . . . . Secondary . | . . . . . Self-Inflicted Damage 223 | . 178 . . 45 Shots 4 | . 2 . . 2 Rammed 1 | . . . . 1 Targets Rammed 1 | . . . . 1 Kicked . | . . . . . Crushed . | . . . . . Highest Temperature 518 | . 455 153 518 509 Average Temperature 135 | . 137 43 193 112 Received Heat Transfer 963 | . 78 36 12 837 Effects 18 | . 5 . 7 6 Shutdowns 7 | . 3 . 3 1 Energy Bleed 3 | . . . 2 1 Interference 4 | . 1 . 1 2 Matter Decay 1 | . . . 1 . Short Circuit 1 | . . . . 1 Damage (minor) 2 | . 1 . . 1 Siege Activations . | . . . . . Robots Corrupted . | . . . . . Combat Hostiles . | . . . . . Parts Fried . | . . . . . Impact Corruptions . | . . . . . Robots Melted . | . . . . . Combat Hostiles . | . . . . . Parts Melted 4 | . . 2 1 1 Heat Transferred 3486 | . 605 578 1110 1193 Parts Sabotaged . | . . . . . Parts Stolen . | . . . . . Parts Stripped . | . . . . . Power Chain Reactions . | . . . . . Alert | -11 -10 -9 -9 -8 ------- Run | Yrd Mat Mat Min Mat Peak Influence 330 | . 162 116 165 330 Initial 45 | . . 1 45 29 Average 57 | . 42 69 32 157 Maximum Alert Level 1 | . . . . 1 Low Security (%) 95 | 100 100 100 100 70 Level 1 4 | . . . . 29 Level 2 . | . . . . . Level 3 . | . . . . . Level 4 . | . . . . . Level 5 . | . . . . . High Security . | . . . . . Max Security . | . . . . . Squads Dispatched 5 | . . 1 . 4 Investigation 1 | . . . . 1 Extermination . | . . . . . Reinforcement 4 | . . 1 . 3 Assault . | . . . . . Garrison . | . . . . . Intercept . | . . . . . Searches Triggered . | . . . . . Construction Impeded . | . . . . . Haulers Reinforced . | . . . . . Active Scanning Responses . | . . . . . Cargo Convoy Interrupts . | . . . . . Stealth | -11 -10 -9 -9 -8 --------- Run | Yrd Mat Mat Min Mat Distress Signals . | . . . . . Communications Jammed . | . . . . . Distress Signals . | . . . . . Times Spotted 47 | . 10 4 11 22 Peak Tracking Total 5 | . 4 2 4 5 Tactical Retreats 4 | . 1 . 2 1 Traps | -11 -10 -9 -9 -8 ------- Run | Yrd Mat Mat Min Mat Traps Triggered . | . . . . . Indirectly . | . . . . . Trap Hack Attempts . | . . . . . Triggered . | . . . . . Disarmed . | . . . . . Reprogrammed . | . . . . . Reused . | . . . . . Traps Extracted . | . . . . . Installed . | . . . . . Triggered . | . . . . . Machines | -11 -10 -9 -9 -8 ---------- Run | Yrd Mat Mat Min Mat Machines Disabled 4 | . 2 . . 2 Max in Single Turn 2 | . 2 . . 1 Machines Repaired . | . . . . . Machines Dismantled . | . . . . . Machines Sabotaged . | . . . . . Overloaded Fab Kills . | . . . . . Hacking | -11 -10 -9 -9 -8 --------- Run | Yrd Mat Mat Min Mat Machines Accessed 4 | . 2 1 . 1 Terminals 4 | . 2 1 . 1 Fabricators . | . . . . . Repair Stations . | . . . . . Recycling Units . | . . . . . Scanalyzers . | . . . . . Garrison Access . | . . . . . Total Hacks 11 | . 4 3 . 4 Successful 4 | . 1 1 . 2 Failed 7 | . 3 2 . 2 Catastrophic 3 | . 2 . . 1 Database Lockouts . | . . . . . Manual 3 | . 3 . . . Terminals 11 | . 4 3 . 4 Fabricators . | . . . . . Repair Stations . | . . . . . Recycling Units . | . . . . . Scanalyzers . | . . . . . Garrison Access . | . . . . . Terminal Hacks 4 | . 1 1 . 2 Robot Analysis 3 | . . 1 . 2 Zone Layout 1 | . 1 . . . Fabricator Hacks . | . . . . . Repair Station Hacks . | . . . . . Recycling Unit Hacks . | . . . . . Scanalyzer . | . . . . . Garrison Access Hacks . | . . . . . Unauthorized Hacks . | . . . . . Terminals . | . . . . . Fabricators . | . . . . . Repair Stations . | . . . . . Recycling Units . | . . . . . Scanalyzers . | . . . . . Garrison Access . | . . . . . Data Cores Recovered 1 | . 1 . . . Used 1 | . 1 . . . Hacking Detections 3 | . 1 1 . 1 Full Trace Events 1 | . . . . 1 Feedback Events . | . . . . . Feedback Blocked . | . . . . . Robot Schematics Acquired . | . . . . . Robots Built . | . . . . . Authchips . | . . . . . Time . | . . . . . Total Robot Build Rating . | . . . . . Part Schematics Acquired . | . . . . . Parts Built . | . . . . . Authchips . | . . . . . Time . | . . . . . Total Part Build Rating . | . . . . . Parts Repaired . | . . . . . Time . | . . . . . Parts Recycled . | . . . . . Recycled Matter . | . . . . . Retrieved Matter . | . . . . . Retrieved Components . | . . . . . Parts Scanalyzed . | . . . . . Part Schematics Acquired . | . . . . . Parts Damaged . | . . . . . Bothacking | -11 -10 -9 -9 -8 ------------ Run | Yrd Mat Mat Min Mat Used RIF Installer . | . . . . . Robots Hacked . | . . . . . Non-combat . | . . . . . Combat . | . . . . . Robot Hacks Applied . | . . . . . Relay Couplers Released . | . . . . . Fabnet Peak Effective % . | . . . . . Robots Rewired . | . . . . . Allies Hacked . | . . . . . Hacks Repelled . | . . . . . Allies | -11 -10 -9 -9 -8 -------- Run | Yrd Mat Mat Min Mat Total Allies 3 | . . . 3 . Largest Group 3 | . . . 3 3 Highest-Rated Group 40 | . . . 40 40 Highest-Rated Ally 16 | . . . 16 16 Total Orders . | . . . . . Ally Attacks 39 | . . . 10 29 Total Damage 452 | . . . 75 377 Kills 7 | . . . 3 4 Allies Corrupted . | . . . . . Allies Melted . | . . . . . Intel | -11 -10 -9 -9 -8 ------- Run | Yrd Mat Mat Min Mat Robot Analysis Total 3 | . . 1 . 2 Derelict Logs Recovered 1 | . . . 1 . Drone Launches . | . . . . . Drone Recoveries . | . . . . . Exploration | -11 -10 -9 -9 -8 ------------- Run | Yrd Mat Mat Min Mat Turns Passed 3785 | 65 1008 214 1875 623 Spaces Moved 1557 | 48 389 118 648 354 Core 8 | 8 . . . . Treads 4 | . . 4 . . Legs 340 | 40 300 . . . Wheels 1205 | . 89 114 648 354 Hover . | . . . . . Flight . | . . . . . Fastest Speed 50 | 50 120 110 110 95 Average Speed 136 | 109 215 136 110 100 Slowest Speed 750 | 120 750 480 110 200 Overloaded Moves . | . . . . . Propulsion Burnouts . | . . . . . Robots Hopped . | . . . . . Cave-ins Triggered . | . . . . . Exploration Rate (%) 37 | 4 36 16 102 28 Regions Visited 4 Branch Regions 1 Pre-discovered Areas 1 | . . . 1 . Known Exits Taken . | . . . . . Unknown Exits Taken 4 | 1 1 1 1 . Scrap Searched 4 | . . . 4 . Spaces Dug . | . . . . . Terrain Destroyed 59 | . 46 . . 13 Melee . | . . . . . Projectile . | . . . . . AOE 59 | . 46 . . 13 Terrain Rammed . | . . . . . Walls Destroyed . | . . . . . Machines Disabled . | . . . . . Actions | -11 -10 -9 -9 -8 --------- Run | Yrd Mat Mat Min Mat Total 2989 | 57 493 146 1755 538 Wait 1142 | . 31 1 1070 40 Move 1553 | 47 388 117 647 354 Hop . | . . . . . Pick Up 34 | 3 7 4 4 16 Fast Attach 24 | 6 4 3 2 9 Attach 21 | . 2 2 . 17 Detach 13 | . 3 3 2 5 Swap 26 | 1 6 5 2 12 Drop 27 | . 7 . 1 19 Fire 148 | . 45 11 27 65 Melee . | . . . . . Ram 1 | . . . . 1 Kick . | . . . . . Crush . | . . . . . Escape Stasis . | . . . . . Rewire . | . . . . . Trap . | . . . . . Miscellaneous . | . . . . . Route ------- -11/Scrapyard -10/Materials -9/Materials -9/Mines (discovered 2 exits: *Mat x2) -8/Materials (discovered 1 exit: [*Fac]) History --------- Turn | Location | Event 5 | -11/Scrapyard | Discovered new exit (range 15) 66 | -11/Scrapyard | Entered Materials 307 | -10/Materials | Build established: Mutant 506 | -10/Materials | Discovered new exit (range 4) 1074 | -10/Materials | Entered another Materials area 1074 | -9/Materials | Evolved 2 slots: Propulsion x2 1235 | -9/Materials | Discovered new exit (range 10) 1288 | -9/Materials | Entered Mines 1444 | -9/Mines | Discovered new exit (range 11) 1524 | -9/Mines | Build established: Scavenger-Mutant 2697 | -9/Mines | Assisted by bots powering up and referring to "LRC-V3" 2825 | -9/Mines | Learned location of Storage (-8) 3095 | -9/Mines | Discovered new exit (range 7) 3163 | -9/Mines | Entered Materials 3163 | -8/Materials | Accompanied by 3 allies 3163 | -8/Materials | Evolved 2 slots: Propulsion x2 3579 | -8/Materials | Lost 4 parts (4n) 3603 | -8/Materials | Discovered new exit (range 3) 3626 | -8/Materials | Core integrity fell below 50% 3705 | -8/Materials | Core integrity fell below 20% 3709 | -8/Materials | Lost 14 parts (2p7n1u4w) 3786 | -8/Materials | Destroyed by H-61 Shepherd with Heavy Assault Cannon Last Messages --------------- 03753_ K-01 Serf collects debris. 03758_ Penetrated by Slug. 03761_ Ion Engine destroyed. 03763_ Y-45 Defender destroyed. 03763_ Switching to secondary target: X-62 Marksman. 03766_ Acquired 40 matter. 03768_ Acquired Hvy. Assault Rifle. 03771_ Y-45 Defender destroyed. 03775_ Terminal disabled. 03777_ Nuclear Reactor explodes. 03778_ Penetrated by Slug. 03779_ Arm. Huge Wheel destroyed. 03780_ Penetrated by Slug. 03780_ Arm. Huge Wheel destroyed. 03781_ The unstable cave ceiling collapses. 03781_ K-01 Serf collects debris. 03782_ Penetrated by Slug. 03782_ Lgt. Nuclear Core destroyed. 03782_ Knocked back. 03784_ K-01 Serf collects debris. Map ----- +----------------------------------------------------+ | ????????????????????????????????????????????? | | ????????????????????????????????????????????? | | ????????????????????????????????????????????? | | ????????????????????????????????????????????? | | ????????????????????????????????????????????? | | ????????????????????????????????????????????? | | ????????????????????????????????????????????? | | ????????????????????????????????????????????? | | ??????????????????????? ????????????????????? | | ??????????????????????? ????????????????????? | | ????????##????????????? ???????????????????? | | ????????# #####???????# ???????????????????? | | ??????### ######## ???????????????????? | | ??????# ??????????????????? | | ??????## < ??????????????????? | | ??????# ??????????????????? | | ?????### # ????????????????????? | | ?????# ####?????????????????? | | ?????# "" =H *#?????????????????? | | ?????# """ % [%! ""%#?????????????????? | | ?????# """ %%! x x#?????????????????? | | ?????# !# % #?????????????????? | | ?????# """ [ #?????????????????? | | ?????# """ k ##????????????????? | | ?????# """ k%[ "#????????????????? | | ?????# =% ## @#######????????????????? | | ????####+####+#### [== #####################? | | ????# !% % | | ????# = | | ????# k | | ????# ! %######### ## ##########???? | | ????# [=#?????########## #????????????? | | ????# #?????# ! #?#!! ]]#????????????? | | ????# #?????# ""#?#!!==]]#????????????? | | ????# #?????# [ T"#?########????????????? | | ????# #?????# ""#?????????????????????? | | ????# #?????# #?????????????????????? | | ????# ##+####### ###################???? | | ????# ## ## ] # ## """"" #???? | | ????# ## ## #[[ """ ## ""T"" #???? | | ????# ?# #####+#+# =["""""## #???? | | ????# ?# # [%#=! """""## ] / #???? | | ????# ?# # ===/*=="""""## #???? | | ????# ?# + ######%%! "" ## """"" #???? | | ????# ?######## #????#* ## """"" #???? | | ????? ????????# #????# = ## """"" #???? | | ?????+???????? #????# ## ##### | | ????????????? #????##+####+#######/### | | ????????????######?????# | | ???????????????????????# | +----------------------------------------------------+ Best States ------------- Heat Dissipation 31 Energy Generation 14 Energy Capacity 265 Matter Stores 500 Matter Capacity 500 Sight Range 18 Terrain Scan Density 10 Evasion (%) 55 Recoil Reduction 1 Item Schematics ----------------- None Robot Schematics ------------------ None Fabricated ------------ Nothing Alien Tech Used ----------------- None Achievements -------------- Armchair Analyst Challenges ------------ None Game ------ Seed AutogunNuclearRegenerator Manual? 0 Play Time 00:19:47 Cumulative 56.8 hours Start 2024.04.06 @ 21:09:52 End 2024.04.06 @ 21:31:07 Sessions 1 Manual Loads 0 Difficulty Rogue Special Mode None Game No. 128 Rogue 128 Adventurer 0 Explorer 0 Win Type - Total 0 Types 0/0/0/0/0/0/0/0/0 Lore% 24 Gallery% 38 Achievement% 29 Wizard Run 0 Options --------- Layout 0 ASCII 0 Keyboard 1 Movement Numpad Keybinds 0 Fullscreen 1 Font 24/Terminus Map View 76x50 Zoom Use 0% Tactical HUD 1 Map Filters NONE Filters NONE Steam 1 RUN: ff850264-cecc-4e47-85c4-a39ba577e053